Cogmind - Beta 16.1 @@@ ROGUE MODE // 2026.04.21 @ 15:13:12 Player: Maelyn Result: Destroyed by S-10 Pest with Light Assault Rifle Performance ------------- Evolutions (0) 0 Regions Visited (2) 400 Robots Destroyed (12) 60 Value Destroyed (360) 360 Prototype IDs (0) 0 Alien Tech Used (0) 0 Bonus (35) 35 TOTAL SCORE: 855 Bonus ------- Follower Combat Kills 35 Cogmind --------- Core Integrity 0/250 Matter 300/300 Energy 100/100 System Corruption 0% Temperature Cool (0) Movement Walking (260) Ox2 Location -10/Mines Parts ------- > --- POWER (1) -------- (None) > --- PROPULSION (2) --- Aluminum Leg > --- UTILITY (2) ------ Heat Sink Large Storage Unit > --- WEAPON (2) ------- Assault Rifle Light Assault Rifle > --- INVENTORY (15) --- Light Ion Engine Aluminum Leg Medium Storage Unit Heavy Assault Rifle Rocket Launcher Peak State ------------ > --- POWER ------------ Light Nuclear Core > --- PROPULSION ------- Aluminum Leg Aluminum Leg > --- UTILITY ---------- Large Storage Unit > --- WEAPON ----------- Medium Laser Particle Gun > --- INVENTORY -------- Light Ion Engine Light Treads Medium Storage Unit Assault Rifle Light Assault Rifle Heavy Assault Rifle [Rating: 9] Favorites ----------- Power Ion Engine Engine Ion Engine Power Core Light Nuclear Core Propulsion Aluminum Leg Treads Light Treads Leg Aluminum Leg Utility Large Storage Unit Device Heat Sink Storage Large Storage Unit Weapon Assault Rifle Energy Gun Medium Laser Ballistic Gun Assault Rifle Build | -11 -10 -10 ------- Run | Yrd Mat Min Slots Evolved . | . . . Power . | . . . Propulsion . | . . . Utility . | . . . Weapon . | . . . Parts Attached 19 | 6 9 4 Power 4 | 1 2 1 Engine 3 | 1 1 1 Core 1 | . 1 . Reactor . | . . . Propulsion 6 | 2 2 2 Treads 2 | 2 . . Leg 4 | . 2 2 Wheel . | . . . Hover . | . . . Flight . | . . . Utility 3 | 1 1 1 Device 1 | . . 1 Storage 2 | 1 1 . Processor . | . . . Hackware . | . . . Protection . | . . . Artifact . | . . . Weapon 6 | 2 4 . Energy Gun 2 | . 2 . Energy Cannon . | . . . Ballistic Gun 4 | 2 2 . Ballistic Cannon . | . . . Launcher . | . . . Special Weapon . | . . . Impact Weapon . | . . . Slashing Weapon . | . . . Piercing Weapon . | . . . Special Melee Weapon . | . . . Unidentified Prototypes . | . . . Parts Lost 11 | . 4 7 Power 4 | . 2 2 Propulsion 4 | . 1 3 Utility . | . . . Weapon 3 | . 1 2 Highest Loss Streak 3 | . 3 2 To Critical Strikes 1 | . . 1 Average Backups 5 | 3 6 5 Power . | . 1 1 Propulsion 1 | 1 2 1 Utility . | . . 1 Weapon 2 | 1 3 2 Tool/Special . | . . . Unused Backups 4 | . 1 3 Power 1 | . . 1 Propulsion . | . . . Utility 2 | . 1 1 Weapon 1 | . . 1 Tool/Special . | . . . Average Slot Usage (%) 84 | . 76 90 Engine 10 | . 9 11 Core 1 | . 2 . Treads 11 | . 24 . Leg 15 | . . 27 Device 6 | . . 11 Storage 14 | . 14 14 Energy Gun 5 | . 6 5 Ballistic Gun 18 | . 18 17 Peak Build Rating 9 | 6 9 9 Average Rating 6 | 3 7 6 On Entrance 5 | . 6 9 Avg Prop Armor Cover (%) . | . . . Naked Turns . | . . . Heaviest Build 31 | 13 31 29 Greatest Support 40 | 40 40 20 Greatest Overweight (x) 2 | 1 1 2 Average Overweight (x) . | . . 1 Largest Inventory Capacity 15 | 8 15 15 Average Capacity 14 | 6 14 15 Most Carried 8 | 5 8 8 Average Carried 6 | 3 6 5 Final Capacity 15 | 8 15 15 Final Carried 6 | 4 6 5 Class Distribution -------------------- 100% | Mutant Dominant Class ---------------- Mutant | -10/Materials Mutant | -10/Mines Resources | -11 -10 -10 ----------- Run | Yrd Mat Min Matter Collected 533 | 37 208 288 Remotely . | . . . Salvage Created 528 | 79 251 198 Parts 18 | . 8 10 Haulers Intercepted . | . . . Recyclers Shooed . | . . . Parts Field Recycled . | . . . Retrieved Matter . | . . . Parts Self-Destructed . | . . . Prevented . | . . . Parts Restored . | . . . Kills | -11 -10 -10 ------- Run | Yrd Mat Min Combat Hostiles Destroyed 9 | . 4 5 Guns 7 | . 3 4 Classes Destroyed 3 | 1 2 . Recycler 2 | 1 1 . Operator 1 | . 1 . Grunt 9 | . 4 5 Best Kill Streak 3 | 1 3 2 Combat Bots Only 2 | . 2 2 Max Kills in Single Turn 1 | 1 1 1 Gunslinging . | . . . Exploded . | . . . Melee . | . . . Uniques/NPCs Destroyed . | . . . Combat | -11 -10 -10 -------- Run | Yrd Mat Min Hostile Shots Fired 205 | . 81 124 Missed 59 | . 18 41 Hits 146 | . 63 83 Projectile 146 | . 63 83 Critical Strikes 4 | . 2 2 Damage Taken 1676 | . 836 840 Core 251 | . 122 129 Absorbed by Shields . | . . . Core Remaining (%) 100 | 100 . . Volleys Fired 76 | 12 30 34 Largest 2 | 1 2 2 Hottest 115 | 20 88 115 Shots Fired 104 | 12 37 55 Gun 104 | 12 37 55 Cannon . | . . . Launcher . | . . . Special . | . . . Kinetic 65 | 12 13 40 Thermal 39 | . 24 15 Explosive . | . . . Electromagnetic . | . . . Robot Hit Streak 20 | 4 20 6 Robot Miss Streak 3 | 3 2 3 Penetration Max . | . . . Secondary Targets 1 | . . 1 Max Gunslinging Chain 1 | . . 1 Shots Hit Robots 73 | 7 31 35 Core Hits 24 | 2 11 11 Critical Kills . | . . . Critical Parts Destroyed 1 | . . 1 Critical Strikes 6 | . 3 3 Burn 5 | . 3 2 Destroy 1 | . . 1 Melee Attacks . | . . . Impact . | . . . Slashing . | . . . Piercing . | . . . Sneak Attacks . | . . . Combat Hostiles . | . . . Follow-up Attacks . | . . . Damage Inflicted 1016 | 92 510 414 Guns 981 | 92 475 414 Cannons . | . . . Explosions . | . . . Melee . | . . . Ramming 35 | . 35 . Kinetic 554 | 92 183 279 Thermal 427 | . 292 135 Explosive . | . . . Electromagnetic . | . . . Impact . | . . . Slashing . | . . . Piercing . | . . . Highest Corruption . | . . . Average Corruption . | . . . Corruption Purged . | . . . Corruption Blocked . | . . . Overload Shots . | . . . Overflow Damage . | . . . Projectiles . | . . . Explosions . | . . . Melee . | . . . Knockbacks 1 | . 1 . Impact 1 | . 1 . Kinetic . | . . . Secondary . | . . . Self-Inflicted Damage . | . . . Shots . | . . . Rammed 6 | . 6 . Targets Rammed 7 | . 7 . Kicked . | . . . Crushed 1 | . 1 . Highest Temperature 395 | . 395 177 Average Temperature 147 | . 159 118 Received Heat Transfer 846 | . 507 339 Siege Activations . | . . . Martial Activations . | . . . Shielding Activations . | . . . Robots Disrupted . | . . . Combat Hostiles . | . . . Robots Corrupted . | . . . Combat Hostiles . | . . . Parts Fried . | . . . Impact Corruptions . | . . . Robots Melted 2 | . 1 1 Combat Hostiles 2 | . 1 1 Parts Melted 5 | . 3 2 Heat Transferred 1517 | . 962 555 Parts Sabotaged . | . . . Parts Stolen . | . . . Parts Stripped . | . . . Power Chain Reactions . | . . . Alert | -11 -10 -10 ------- Run | Yrd Mat Min Maximum Alert Level . | . . . Low Security (%) 100 | 100 100 100 Level 1 . | . . . Level 2 . | . . . Level 3 . | . . . Level 4 . | . . . Level 5 . | . . . High Security . | . . . Max Security . | . . . Peak Influence 47 | 5 40 47 Initial 1 | . . 1 Average 10 | . 9 12 Influence Increases 302 | 5 110 187 Destroy 0b10 Robot/C 200 | . 80 120 Destroy 0b10 Robot/NC 15 | 5 10 . Destroy Leader 40 | . 20 20 Allied During Kill 2 | . . 2 Lose Combat Pursuer 45 | . . 45 Influence Decreases 302 | 5 106 191 Entered New Map 3 | . . 3 Time Decay 233 | 5 91 137 Lost Part 46 | . 15 31 Lost Ally 20 | . . 20 Squads Dispatched 2 | . 1 1 Investigation . | . . . Extermination . | . . . Reinforcement 1 | . 1 . Assault 1 | . . 1 Garrison . | . . . Intercept . | . . . Searches Triggered . | . . . Construction Impeded . | . . . Haulers Reinforced . | . . . Active Scanning Responses . | . . . Cargo Convoy Interrupts . | . . . Stealth | -11 -10 -10 --------- Run | Yrd Mat Min Distress Signals 1 | . . 1 Communications Jammed . | . . . Distress Signals . | . . . Times Spotted 21 | . 6 15 Peak Tracking Total 4 | . 3 4 Tactical Retreats 1 | . . 1 Traps | -11 -10 -10 ------- Run | Yrd Mat Min Traps Triggered . | . . . Indirectly . | . . . Trap Hack Attempts . | . . . Triggered . | . . . Disarmed . | . . . Reprogrammed . | . . . Reused . | . . . Traps Extracted . | . . . Installed . | . . . Triggered . | . . . Machines | -11 -10 -10 ---------- Run | Yrd Mat Min Machines Disabled . | . . . Max in Single Turn . | . . . Machines Repaired . | . . . Machines Dismantled . | . . . Machines Sabotaged . | . . . Overloaded Fab Kills . | . . . Hacking | -11 -10 -10 --------- Run | Yrd Mat Min Machines Accessed . | . . . Terminals . | . . . Fabricators . | . . . Repair Stations . | . . . Recycling Units . | . . . Scanalyzers . | . . . Garrison Access . | . . . Total Hacks . | . . . Successful . | . . . Failed . | . . . Catastrophic . | . . . Database Lockouts . | . . . Manual . | . . . Terminals . | . . . Fabricators . | . . . Repair Stations . | . . . Recycling Units . | . . . Scanalyzers . | . . . Garrison Access . | . . . Terminal Hacks . | . . . Fabricator Hacks . | . . . Repair Station Hacks . | . . . Recycling Unit Hacks . | . . . Scanalyzer . | . . . Garrison Access Hacks . | . . . Unauthorized Hacks . | . . . Terminals . | . . . Fabricators . | . . . Repair Stations . | . . . Recycling Units . | . . . Scanalyzers . | . . . Garrison Access . | . . . Data Cores Recovered . | . . . Used . | . . . Hacking Detections . | . . . Full Trace Events . | . . . Feedback Events . | . . . Feedback Blocked . | . . . Robot Schematics Acquired . | . . . Robots Built . | . . . Authchips . | . . . Time . | . . . Total Robot Build Rating . | . . . Part Schematics Acquired . | . . . Parts Built . | . . . Authchips . | . . . Time . | . . . Total Part Build Rating . | . . . Part Studies Acquired . | . . . Parts Repaired . | . . . Time . | . . . Parts Recycled . | . . . Recycled Matter . | . . . Retrieved Matter . | . . . Retrieved Components . | . . . Parts Scanalyzed . | . . . Part Schematics Acquired . | . . . Parts Damaged . | . . . Bothacking | -11 -10 -10 ------------ Run | Yrd Mat Min Used RIF Installer . | . . . Robots Hacked . | . . . Non-combat . | . . . Combat . | . . . Robot Hacks Applied . | . . . Relay Couplers Released . | . . . Fabnet Peak Effective % . | . . . Robots Rewired . | . . . Allies Hacked . | . . . Hacks Repelled . | . . . Allies | -11 -10 -10 -------- Run | Yrd Mat Min Total Allies 1 | . . 1 Largest Group 1 | . . 1 Highest-Rated Group 31 | . . 31 Highest-Rated Ally 31 | . . 31 Total Orders . | . . . Ally Attacks 8 | . . 8 Total Damage 150 | . . 150 Kills 1 | . . 1 Allies Corrupted . | . . . Allies Melted . | . . . Intel | -11 -10 -10 ------- Run | Yrd Mat Min Active Infowar (turns) . | . . . Robot Analysis Total . | . . . Derelict Logs Recovered 1 | . . 1 Drone Launches . | . . . Drone Recoveries . | . . . Exploration | -11 -10 -10 ------------- Run | Yrd Mat Min Turns Passed 1075 | 113 422 540 Spaces Moved 470 | 51 188 231 Core 6 | 6 . . Treads 232 | 45 187 . Legs 232 | . 1 231 Wheels . | . . . Hover . | . . . Flight . | . . . Fastest Speed 50 | 50 160 190 Average Speed 180 | 150 173 192 Slowest Speed 260 | 160 240 260 Overloaded Moves . | . . . Propulsion Burnouts . | . . . Robots Hopped . | . . . Potential Cave-ins . | . . . Cave-ins Triggered . | . . . Exploration Rate (%) 23 | 4 25 42 Regions Visited 2 Branch Regions 1 Pre-discovered Areas . | . . . Known Exits Taken . | . . . Unknown Exits Taken 2 | 1 1 . Scrap Searched 1 | . . 1 Spaces Dug . | . . . Terrain Destroyed . | . . . Melee . | . . . Projectile . | . . . AOE . | . . . Terrain Rammed . | . . . Walls Destroyed . | . . . Machines Disabled . | . . . Actions | -11 -10 -10 --------- Run | Yrd Mat Min Total 591 | 76 241 274 Wait . | . . . Move 468 | 50 187 231 Hop . | . . . Pick Up 11 | 7 3 1 Fast Attach 9 | 4 3 2 Attach 8 | 2 2 4 Detach 1 | . 1 . Swap 7 | . 5 2 Drop 4 | 1 3 . Fire 76 | 12 30 34 Melee . | . . . Ram . | . . . Kick . | . . . Crush 7 | . 7 . Escape Stasis . | . . . Rewire . | . . . Trap . | . . . Miscellaneous . | . . . Route ------- -11/Scrapyard -10/Materials -10/Mines (discovered 1 exit: [*Mat]) History --------- Turn | Location | Event 6 | -11/Scrapyard | Discovered new exit (range 16) 114 | -11/Scrapyard | Entered Materials 302 | -10/Materials | Build established: Mutant 464 | -10/Materials | Lost 3 parts (1p1n1w) 514 | -10/Materials | Discovered new exit (range 7) 536 | -10/Materials | Entered Mines 540 | -10/Mines | Core integrity fell below 50% 643 | -10/Mines | Met a Derelict testing a Signal Generator 785 | -10/Mines | Core integrity fell below 20% 931 | -10/Mines | Received a Rocket Launcher from a helpful Derelict 940 | -10/Mines | Assembled infested the area 995 | -10/Mines | Learned 2 Materials zone layouts 1047 | -10/Mines | Discovered new exit (range 10) 1076 | -10/Mines | Destroyed by S-10 Pest with Light Assault Rifle Last Messages --------------- 00929_ LD-UL5(g): "Need to get rid of a swarm? Done. Need a big hole in the wall? Done." 00930_ LD-UL5(g): "Need a small hole in the wall? Leave that to the mining laser wimps, I say!" 00931_ LD-UL5(g): "Would you like a rocket launcher? I know I would if I were you, so I'm going to lend you mine." 00931_ LD-UL5(g) slips back into the shadows. 00940_ ALERT: Infestation in the mines, dispatching Demolisher response squad. 00941_ Acquired Rocket Launcher. 00995_ Acquired derelict log, extracted data. Data stored: Materials zone layouts (x2). 01034_ T-07 Excavator is excavating. 01047_ EXIT=FOUND 01053_ U-05 Engineer destroyed. 01057_ Aluminum Leg destroyed. 01058_ Critical hit (Destroy). 01058_ Ion Engine destroyed. 01063_ R-06 Scavenger collects Terrain Scanner. 01066_ R-06 Scavenger collects Welding Torch. Map ----- +----------------------------------------------------+ | ????????????# ##### #?????????## ?????? | | ????????????# #??## ##????????# #??????? | | ????????????# #?## ##???????# #???????? | | ????????????# #?# ######??# #????????? | | ????????????# #?# ##?# ##???????? | | ????????????# #?## ### #####???? | | ????????????# #??# ##??? | | ????????????# #??## #### | | ????????????# #???# ### # % | | ????????????# #???## ## ##?#### # % | | ????????????# ##???############?????# ## # | | ???????????## ##???????????????????# ##### # | | ???????????# #???????????????????# #???## ## | | ???????????# #???????????????????# #????####? | | ???????????# ##???????????????????# #????????? | | ???????????# #????????????????????# #????????? | | ??????????## #???????????????????? #????????? | | ?????????## ########?????????????####????????? | | ?????????# ??????????????????? | | ?????????# =########?????????????????????????? | | ?????????# ##%###??????????????????????????????? | | ???????? ###!| ##?????????????????????????????? | | ???????# ?# ##????????????????????????????? | | ???????# ##?# ##???????????????????????????? | | ???????##??## s #########???????????????????? | | ???????????# ss @ #???????????????????? | | ???????????# #######k#???????????????????? | | ???????????## #???????????????????????????? | | ????????????### < #???????????????????????????? | | ??????????????## ##???????????????????????????? | | ???????????????#####????????????????????????????? | | ????????????????????????????????????????????????? | | ????????????????????????????????????????????????? | | ????????????????????????????????????????????????? | | ????????????????????????????????????????????????? | | | | | | | | | | | | | | | | | | | | | | | | | | | | | | | +----------------------------------------------------+ Best States ------------- Heat Dissipation 35 Energy Generation 14 Energy Capacity 250 Matter Stores 300 Matter Capacity 300 Sight Range 16 Terrain Scan Density 10 Evasion (%) 40 Recoil Reduction 2 Item Schematics ----------------- None Robot Schematics ------------------ None Fabricated ------------ Nothing Repaired ---------- Nothing Studied --------- None Alien Tech Used ----------------- None Achievements -------------- None Challenges ------------ None Game ------ Seed CoolingBiometalBroadsword Manual? 0 Play Time 00:08:40 Cumulative 69.3 hours Start 2026.04.21 @ 15:06:35 End 2026.04.21 @ 15:13:12 Sessions 1 Manual Loads 0 Difficulty Rogue Special Mode None Game No. 138 Rogue 138 Adventurer 0 Explorer 0 Win Type - Total 0 Types 0/0/0/0/0/0/0/0/0/0 Lore% 15 Gallery% 33 Achievement% 23 Wizard Run 0 Options --------- Layout 0 ASCII 0 Keyboard 1 Movement Vi Keybinds 0 Fullscreen 2 Font 18/T_Terminus Map View 76x50 Zoom Use 0% Tactical HUD 1 Map Filters SHIFT_HUE(5) Filters LOW_CONTRAST(10,2,20)|SHIFT_HUE(5) Steam 1 RUN: 4e90d820-e97d-4620-82ed-568e0b730d94